bitfinex-derivatives/quotes_BTCF0:USTF0_20241010
["timestamp","ask_amount","ask_price","bid_price","bid_amount"]
[1728532863178,0.002,60906.0,60905.0,0.47922]
[1728532863362,0.002,60906.0,60905.0,0.59412311]
[1728532863557,0.02912631,60908.0,60907.0,0.08217]
[1728532863757,0.082162,60913.0,60907.0,0.76441849]
[1728532863964,0.082162,60913.0,60911.0,0.12]
[1728532864162,0.082162,60913.0,60912.0,0.20144849]
[1728532864761,0.082162,60913.0,60912.0,0.19037572]
[1728532866264,0.084162,60913.0,60912.0,0.09847243]
[1728532866462,0.084162,60913.0,60912.0,0.19101291]
[1728532866664,0.082162,60913.0,60912.0,0.19101291]
[1728532866964,0.084162,60913.0,60912.0,0.19101291]
[1728532867673,0.084162,60913.0,60912.0,0.09254048]
[1728532869066,0.084162,60913.0,60912.0,0.19101291]
[1728532869375,0.084162,60913.0,60912.0,0.09254048]
[1728532870172,0.084162,60913.0,60912.0,0.001]
[1728532871578,0.084162,60913.0,60912.0,0.06663232]
[1728532873979,0.084162,60913.0,60912.0,0.001]
[1728532877382,0.084162,60913.0,60912.0,0.19101119]
[1728532877676,0.084162,60913.0,60912.0,0.09253876]
[1728532877872,0.084162,60913.0,60912.0,0.19101119]
[1728532881080,0.084162,60913.0,60912.0,0.09253876]
[1728532881384,0.084162,60913.0,60912.0,0.19095021]
[1728532881586,0.084162,60913.0,60912.0,0.09253876]
[1728532882081,0.084162,60913.0,60912.0,0.19094629]
[1728532882281,0.084162,60913.0,60912.0,0.32155514]
[1728532885177,0.084162,60913.0,60912.0,0.32141971]
[1728532886082,0.084162,60913.0,60912.0,0.20141971]
[1728532888789,0.084162,60913.0,60910.0,0.08206303]
[1728532888790,0.082163,60912.0,60910.0,0.08206303]
[1728532888988,0.082163,60912.0,60906.0,0.0114]
[1728532888989,0.08217,60907.0,60906.0,0.0114]
[1728532889181,0.082175,60903.0,60902.0,0.0114]
[1728532889481,0.082175,60903.0,60900.0,0.09843129]
[1728532889482,0.082175,60903.0,60900.0,0.0114]
[1728532889690,0.082179,60900.0,60899.0,0.09843129]
[1728532890281,0.4808,60901.0,60898.0,0.09843129]
[1728532890482,0.202181,60899.0,60898.0,0.09843129]
[1728532891284,0.202181,60899.0,60898.0,0.09844723]
[1728532891486,0.202181,60899.0,60898.0,0.09944723]
[1728532892286,0.082186,60895.0,60894.0,0.0114]
[1728532892484,0.082186,60895.0,60891.0,0.54143714]
[1728532892485,0.202186,60895.0,60891.0,0.54143714]
[1728532893693,0.203186,60895.0,60891.0,0.54343714]
[1728532893881,0.203186,60895.0,60891.0,0.54443714]
[1728532893882,0.204186,60895.0,60891.0,0.54443714]
[1728532894076,0.082188,60894.0,60891.0,0.44599]
[1728532894979,0.122,60895.0,60891.0,0.44599]
[1728532894980,0.082189,60893.0,60891.0,0.44599]
[1728532897083,0.083189,60893.0,60891.0,0.44599]
[1728532897488,0.084189,60893.0,60891.0,0.44599]
[1728532899289,0.084189,60893.0,60892.0,0.08219]
[1728532900392,0.084189,60893.0,60892.0,0.1902496]
[1728532900592,0.083189,60893.0,60892.0,0.1902496]
[1728532900794,0.084189,60893.0,60892.0,0.1932496]
[1728532902488,0.084189,60893.0,60892.0,0.08519]
[1728532903392,0.084189,60893.0,60892.0,0.18349131]
[1728532903591,0.084189,60893.0,60892.0,0.08519]
[1728532903793,0.084189,60893.0,60892.0,0.27419071]
[1728532903991,0.084189,60893.0,60892.0,0.27419032]
[1728532904192,0.084189,60893.0,60892.0,0.17588761]
[1728532904495,0.084189,60893.0,60892.0,0.2741903]
[1728532904890,0.084189,60893.0,60892.0,0.17588761]
[1728532905600,0.084189,60893.0,60892.0,0.2741909]
[1728532905898,0.084189,60893.0,60892.0,0.27419112]
[1728532906991,0.084189,60893.0,60892.0,0.17588761]
[1728532907491,0.084189,60893.0,60892.0,0.2741977]
[1728532907797,0.11249096,60893.0,60892.0,0.2741977]
[1728532907988,0.11249096,60893.0,60892.0,0.17588761]
[1728532908599,0.11249096,60893.0,60892.0,0.28405227]
[1728532909195,0.084189,60893.0,60892.0,0.28405227]
[1728532909395,0.002,60893.0,60892.0,0.3508633]
[1728532909600,0.02963572,60897.0,60896.0,0.082185]
[1728532909793,0.082181,60899.0,60896.0,0.31886227]
[1728532910000,0.082181,60899.0,60898.0,0.082182]
[1728532910294,0.082181,60899.0,60898.0,0.17287961]
[1728532910495,0.082181,60899.0,60898.0,0.28088559]
[1728532911600,0.083181,60899.0,60898.0,0.28188559]
[1728532912096,0.084181,60899.0,60898.0,0.28388559]
[1728532913705,0.084181,60899.0,60898.0,0.28390812]
[1728532917693,0.204181,60899.0,60898.0,0.28390812]
[1728532918391,0.204181,60899.0,60898.0,0.28434223]
[1728532920302,0.204181,60899.0,60898.0,0.20216023]
[1728532921694,0.204181,60899.0,60898.0,0.20214479]
[1728532922197,0.204181,60899.0,60898.0,0.44264887]
[1728532922899,0.204181,60899.0,60898.0,0.31691619]
[1728532923314,0.204181,60899.0,60898.0,0.44264842]
[1728532923497,0.204181,60899.0,60898.0,0.20214479]
[1728532924504,0.204181,60899.0,60898.0,0.31691619]
[1728532925404,0.204181,60899.0,60898.0,0.20214479]
[1728532926403,0.204181,60899.0,60898.0,0.20213735]
[1728532927605,0.204181,60899.0,60898.0,0.28431935]
[1728532928107,0.084181,60899.0,60898.0,0.28431935]
[1728532929807,0.084181,60899.0,60898.0,0.52482393]
[1728532930203,0.204181,60899.0,60898.0,0.44264193]
[1728532930712,0.204181,60899.0,60898.0,0.31690875]
[1728532931014,0.204181,60899.0,60898.0,0.31689799]
[1728532931409,0.204181,60899.0,60898.0,0.20212659]
[1728532932312,0.204181,60899.0,60898.0,0.4426346]
[1728532933110,0.204181,60899.0,60898.0,0.20212659]
[1728532935206,0.237181,60899.0,60898.0,0.20212659]
[1728532936814,0.597981,60899.0,60898.0,0.20212659]
[1728532937019,0.597981,60899.0,60898.0,0.31689799]
[1728532937718,0.597981,60899.0,60898.0,0.44280803]
[1728532937919,0.597981,60899.0,60898.0,0.20212659]
[1728532939119,0.477981,60899.0,60898.0,0.20212659]
[1728532939311,0.597981,60899.0,60898.0,0.20212659]
[1728532940515,0.477981,60899.0,60898.0,0.32799462]
[1728532940717,0.444981,60899.0,60898.0,0.44278499]
[1728532941027,0.444981,60899.0,60898.0,0.52496699]
[1728532941217,0.444981,60899.0,60898.0,0.41019559]
[1728532944827,0.084181,60899.0,60898.0,0.41019559]
[1728532945416,0.084181,60899.0,60898.0,0.41033313]
[1728532949823,0.084181,60899.0,60898.0,0.52540375]
[1728532950127,0.084181,60899.0,60898.0,0.52544673]
[1728532950524,0.084181,60899.0,60898.0,0.41037611]
[1728532951820,0.002,60899.0,60898.0,0.41037611]
[1728532952028,0.082176,60903.0,60898.0,0.93181186]
[1728532952228,0.0038,60910.0,60902.0,0.202177]
[1728532952529,0.0038,60910.0,60899.0,0.38929411]
[1728532952530,0.0038,60910.0,60908.0,0.202167]
[1728532952531,0.082166,60910.0,60908.0,0.202167]
[1728532952723,0.082166,60910.0,60909.0,0.28150591]
[1728532953225,0.202166,60910.0,60909.0,0.28150591]
[1728532954316,0.202166,60910.0,60909.0,0.19933891]
[1728532954723,0.08217,60907.0,60905.0,0.562972]
[1728532954922,0.08217,60907.0,60906.0,0.19826443]
[1728532955929,0.20217,60907.0,60906.0,0.19826443]
[1728532957024,0.20317,60907.0,60906.0,0.20026443]
[1728532957426,0.20317,60907.0,60906.0,0.20426443]
[1728532959424,0.20317,60907.0,60906.0,0.20436066]
[1728532960636,0.20317,60907.0,60906.0,0.05522592]
[1728532961134,0.20317,60907.0,60906.0,0.006]
[1728532964731,0.20317,60907.0,60906.0,0.05522247]
[1728532965733,0.20317,60907.0,60906.0,0.006]
[1728532967645,0.20317,60907.0,60906.0,0.20444124]
[1728532972438,0.08317,60907.0,60906.0,0.20444124]
[1728532972951,0.20317,60907.0,60906.0,0.20444124]
[1728532977345,0.001,60907.0,60906.0,0.32444124]
[1728532977545,0.001,60907.0,60906.0,0.52166696]
[1728532977740,0.001,60907.0,60906.0,0.47340957]
[1728532977943,0.02911608,60912.0,60906.0,1.56596957]
[1728532978147,0.08216,60915.0,60911.0,0.12]
[1728532978344,0.08216,60915.0,60914.0,0.20216]
[1728532978538,0.08216,60915.0,60914.0,0.40015543]
[1728532979141,0.08216,60915.0,60914.0,0.28015543]
[1728532979649,0.11097339,60915.0,60914.0,0.28015543]
[1728532981353,0.11497339,60915.0,60914.0,0.28015543]
[1728532981853,0.11497339,60915.0,60914.0,0.18973288]
[1728532982044,0.11497339,60915.0,60914.0,0.27998149]
[1728532982246,0.22497339,60915.0,60914.0,0.19782149]
[1728532982452,1.31745339,60915.0,60914.0,0.10767623]
[1728532982753,1.31745339,60915.0,60913.0,0.04926007]
[1728532982754,0.08216,60914.0,60913.0,0.04926007]
[1728532982961,0.08216,60914.0,60912.0,0.0656789]
[1728532982962,0.82554,60914.0,60912.0,0.0656789]
[1728532983143,0.82554,60914.0,60912.0,0.04925935]
[1728532983144,0.49252,60913.0,60912.0,0.04925935]
[1728532983342,0.49252,60913.0,60911.0,0.04926437]
[1728532983343,1.19252,60913.0,60911.0,0.04926437]
[1728532983550,0.562963,60912.0,60911.0,0.04926437]
[1728532983753,1.155483,60912.0,60911.0,0.04926437]
[1728532983956,1.755483,60912.0,60911.0,0.04926437]
[1728532985752,0.082166,60910.0,60909.0,0.04926437]
[1728532985955,0.312166,60910.0,60909.0,0.04926437]
[1728532986458,0.082167,60909.0,60907.0,0.0656789]
[1728532986647,0.08217,60907.0,60906.0,0.0656789]
[1728532986957,0.44297,60907.0,60906.0,0.0656789]
[1728532987657,0.082175,60903.0,60902.0,0.09349862]
[1728532987850,0.202175,60903.0,60902.0,0.08209862]
[1728532989552,0.121,60903.0,60900.0,0.08209862]
[1728532989855,0.121,60903.0,60898.0,0.51228]
[1728532989856,0.202178,60901.0,60898.0,0.594462]
[1728532990050,0.12,60901.0,60899.0,0.06680531]
[1728532990257,0.082179,60900.0,60898.0,0.592182]
[1728532990450,0.082179,60900.0,60899.0,0.06680596]
[1728532990757,0.4808,60901.0,60896.0,0.19723972]
[1728532990957,0.4808,60901.0,60896.0,0.082185]
[1728532990958,0.12,60897.0,60896.0,0.082185]
[1728532991159,0.12,60897.0,60896.0,0.592185]
[1728532991860,0.202183,60897.0,60896.0,0.592185]
[1728532992558,0.202183,60897.0,60896.0,0.81383842]
[1728532993059,0.203183,60897.0,60896.0,0.81683842]
[1728532993556,0.203183,60897.0,60896.0,0.7017837]
[1728532994546,0.204183,60897.0,60896.0,0.7057837]
[1728532996257,0.204183,60897.0,60896.0,0.70575759]
[1728532997464,0.204183,60897.0,60896.0,0.79515761]
[1728532997762,0.204183,60897.0,60896.0,0.17858502]
[1728532998365,0.204183,60897.0,60896.0,0.17858989]
[1728532999053,0.204183,60897.0,60896.0,0.17858563]
[1728533003564,0.204183,60897.0,60896.0,0.09640063]
[1728533003762,0.204183,60897.0,60896.0,0.19483472]
[1728533003964,0.204183,60897.0,60896.0,0.09640063]
[1728533005171,0.204183,60897.0,60896.0,0.007]
[1728533005555,0.204183,60897.0,60896.0,0.07260229]
[1728533005556,1.416823,60897.0,60896.0,0.07260229]
[1728533005761,0.816823,60897.0,60896.0,0.007]
[1728533006759,0.815823,60897.0,60896.0,0.004]
[1728533006965,0.816823,60897.0,60896.0,0.007]
[1728533007365,0.815823,60897.0,60896.0,0.005]
[1728533008068,0.815823,60897.0,60896.0,0.006]
[1728533008069,0.323183,60897.0,60896.0,0.006]
[1728533008263,0.683983,60897.0,60896.0,0.006]
[1728533008467,0.083183,60897.0,60896.0,0.126]
[1728533008765,0.083183,60897.0,60896.0,0.21564062]
[1728533008969,0.001,60897.0,60896.0,0.29782562]
[1728533009555,0.001,60897.0,60896.0,0.4044671]
[1728533009556,0.121,60897.0,60896.0,0.4044671]
[1728533010070,0.121,60897.0,60896.0,0.2844671]
[1728533010268,0.121,60897.0,60896.0,0.2842768]
[1728533014782,0.121,60897.0,60896.0,0.1776445]
[1728533015167,0.121,60897.0,60896.0,0.17776029]
[1728533015365,0.121,60897.0,60896.0,0.09557529]
[1728533015561,0.203183,60897.0,60896.0,0.09557529]
[1728533016970,0.203183,60897.0,60896.0,0.19407903]
[1728533017369,0.203183,60897.0,60896.0,0.09557529]
[1728533018973,0.203183,60897.0,60896.0,0.20251955]
[1728533019177,0.203183,60897.0,60896.0,0.20251171]
[1728533021973,0.563983,60897.0,60896.0,0.20251171]
[1728533024174,0.563983,60897.0,60896.0,0.20268063]
[1728533024778,0.563983,60897.0,60896.0,0.20272755]
[1728533026681,0.443983,60897.0,60896.0,0.20272755]
[1728533034586,0.3618,60897.0,60896.0,0.40491255]
[1728533034786,0.3618,60897.0,60896.0,0.64382328]
[1728533034787,0.001,60897.0,60896.0,0.64382328]
[1728533034989,0.001,60897.0,60896.0,0.52882212]
[1728533035192,0.02841744,60901.0,60896.0,0.51344428]
[1728533035388,0.082175,60904.0,60900.0,0.082179]
[1728533035592,0.12,60902.0,60901.0,0.19672755]
[1728533037291,0.204177,60902.0,60901.0,0.19672755]
[1728533037595,0.204177,60902.0,60901.0,0.19872755]
[1728533039189,0.084177,60902.0,60901.0,0.1980628]
[1728533039592,0.204177,60902.0,60901.0,0.1980628]
[1728533052208,0.204177,60902.0,60901.0,0.19814447]
[1728533061814,0.204177,60902.0,60901.0,0.19820041]
[1728533064605,0.204177,60902.0,60901.0,0.43713161]
[1728533068510,0.204177,60902.0,60901.0,0.19820041]
[1728533069009,0.204177,60902.0,60901.0,0.32220584]
[1728533069213,0.204177,60902.0,60901.0,0.19820041]
[1728533069533,0.204177,60902.0,60901.0,0.32221776]
[1728533069712,0.204177,60902.0,60901.0,0.43721349]
[1728533069911,0.204177,60902.0,60901.0,0.19820041]
[1728533072915,0.204177,60902.0,60901.0,0.09150905]
[1728533073514,0.564977,60902.0,60901.0,0.09150905]
[1728533075919,0.564977,60902.0,60901.0,0.19824115]
[1728533077923,0.564977,60902.0,60901.0,0.28041915]
[1728533078327,0.3628,60902.0,60901.0,0.28041915]
[1728533078513,0.02889538,60905.0,60904.0,0.082174]
[1728533078714,0.082172,60906.0,60904.0,0.31618726]
[1728533078929,0.082172,60906.0,60905.0,0.27836026]
[1728533079824,0.088172,60906.0,60905.0,0.27836026]
[1728533080921,0.088172,60906.0,60905.0,0.51702294]
[1728533081329,0.088172,60906.0,60905.0,0.51802294]
[1728533082419,0.088172,60906.0,60905.0,0.39443052]
[1728533082913,0.088172,60906.0,60905.0,0.51799236]
[1728533083117,0.082172,60906.0,60905.0,0.51799236]
[1728533083328,0.085172,60906.0,60905.0,0.39443052]
[1728533083722,0.084172,60906.0,60905.0,0.39443052]
[1728533083923,0.084172,60906.0,60905.0,0.28036026]
[1728533084433,0.084172,60906.0,60905.0,0.27983773]
[1728533087925,0.084172,60906.0,60905.0,0.17343767]
[1728533088919,0.084172,60906.0,60905.0,0.25552382]
[1728533089119,0.084172,60906.0,60905.0,0.25547839]
[1728533089326,0.084172,60906.0,60905.0,0.16625915]
[1728533090920,0.084172,60906.0,60905.0,0.2554817]
[1728533091420,0.084172,60906.0,60905.0,0.16625915]
[1728533092329,0.084172,60906.0,60905.0,0.25546853]
[1728533094429,0.084172,60906.0,60905.0,0.28625915]
[1728533094629,0.084172,60906.0,60905.0,0.37545926]
[1728533094940,0.084172,60906.0,60905.0,0.39968028]
[1728533095328,0.084172,60906.0,60905.0,0.39966718]
[1728533097734,0.002,60906.0,60905.0,0.58983375]
[1728533097937,0.002,60906.0,60905.0,1.09983375]
[1728533098233,0.002,60906.0,60905.0,1.2313259]
[1728533098424,0.002,60906.0,60905.0,1.09983375]
[1728533098628,0.002,60906.0,60905.0,0.58983375]
[1728533098826,0.084171,60906.0,60905.0,0.58983375]
[1728533099127,0.084171,60906.0,60905.0,0.5226788]
[1728533099436,0.084171,60906.0,60905.0,0.58942957]
[1728533099640,0.084171,60906.0,60905.0,0.61512097]
[1728533100036,0.084171,60906.0,60905.0,0.61521045]
[1728533101630,0.084171,60906.0,60905.0,0.61520928]
[1728533101836,0.084171,60906.0,60905.0,0.5484111]
[1728533102036,0.084171,60906.0,60905.0,0.61520851]
[1728533102232,0.084171,60906.0,60905.0,0.65631467]
[1728533102946,0.084171,60906.0,60905.0,0.53301332]
[1728533103636,0.084171,60906.0,60905.0,0.44068918]
[1728533105535,0.084171,60906.0,60905.0,0.53312956]
[1728533106251,0.084171,60906.0,60905.0,0.53312911]
[1728533106732,0.084171,60906.0,60905.0,0.44068918]
[1728533106934,0.084171,60906.0,60905.0,0.44068923]
[1728533107130,0.084171,60906.0,60905.0,0.46633176]
[1728533107336,0.084171,60906.0,60905.0,0.4920234]
[1728533107937,0.084171,60906.0,60905.0,0.46638127]
[1728533108138,0.084171,60906.0,60905.0,0.4665086]
[1728533108642,0.002,60906.0,60905.0,0.4665086]
[1728533109245,0.002,60906.0,60905.0,0.49214951]
[1728533110047,0.002,60906.0,60905.0,0.74714317]
[1728533110546,0.002,60906.0,60905.0,0.74714301]
[1728533111244,0.002,60906.0,60905.0,0.61565086]
[1728533111445,0.02930101,60910.0,60905.0,0.70502543]
[1728533111645,0.0038,60917.0,60909.0,0.12]
[1728533111849,0.0038,60917.0,60908.0,0.50145672]
[1728533111850,0.082155,60918.0,60914.0,0.11501548]
[1728533112147,0.3608,60919.0,60915.0,0.19553734]
[1728533112148,0.082158,60916.0,60915.0,0.19553734]
[1728533112735,0.39046169,60919.0,60915.0,0.19505548]
[1728533112942,0.082155,60918.0,60917.0,0.12]
[1728533113149,0.082155,60918.0,60917.0,0.31505548]
[1728533114047,0.082155,60918.0,60917.0,0.31605548]
[1728533114048,0.090155,60918.0,60917.0,0.31605548]
[1728533115246,0.008,60918.0,60917.0,0.31605548]
[1728533115454,0.008,60918.0,60917.0,0.75901148]
[1728533115643,0.012,60918.0,60917.0,0.75901148]
[1728533115951,0.082153,60920.0,60918.0,0.082155]
[1728533116149,0.082153,60920.0,60919.0,0.31505548]
[1728533117552,0.082153,60920.0,60919.0,0.31728484]
[1728533118250,0.082153,60920.0,60919.0,0.19928484]
[1728533118552,0.083153,60920.0,60919.0,0.20928484]
[1728533119546,0.083153,60920.0,60919.0,0.20428484]
[1728533119751,0.083153,60920.0,60919.0,0.21128484]
[1728533119752,0.084153,60920.0,60919.0,0.21128484]
[1728533120253,0.11362571,60920.0,60919.0,0.21128484]
[1728533120653,0.11362571,60920.0,60919.0,0.29348318]
[1728533121252,0.11362571,60920.0,60919.0,0.41348318]
[1728533122150,0.11362571,60920.0,60919.0,0.41351481]
[1728533123738,0.03147271,60920.0,60919.0,0.41351481]
[1728533124148,0.03147271,60920.0,60919.0,0.3078238]
[1728533124451,0.002,60920.0,60919.0,0.53154312]
[1728533125051,0.002,60920.0,60919.0,0.219154]
[1728533125352,0.002,60920.0,60919.0,0.33730555]
[1728533125554,0.002,60920.0,60919.0,0.69810555]
[1728533125738,0.002,60920.0,60919.0,0.78004394]
[1728533125944,0.002,60920.0,60919.0,0.69810555]
[1728533126139,0.002,60920.0,60919.0,0.78004394]
[1728533126340,0.002,60920.0,60919.0,0.78659861]
[1728533128550,0.002,60920.0,60919.0,0.76090753]
[1728533128742,0.002,60920.0,60919.0,0.78659099]
[1728533129055,0.002,60920.0,60919.0,0.66659099]
[1728533129362,0.002,60920.0,60919.0,0.86849696]
[1728533129548,0.002,60920.0,60919.0,0.69809793]
[1728533130955,0.2316286,60922.0,60921.0,0.082151]
[1728533131153,0.2316286,60922.0,60921.0,0.14767556]
[1728533132257,0.5102786,60922.0,60920.0,0.06552456]
[1728533132447,0.5102786,60922.0,60919.0,0.04259208]
[1728533132448,0.082152,60920.0,60919.0,0.017]
[1728533133061,0.082152,60920.0,60919.0,0.10561146]
[1728533133458,0.082152,60920.0,60919.0,0.08861146]
[1728533133659,0.082152,60920.0,60919.0,0.18692493]
[1728533134058,0.083152,60920.0,60919.0,0.19492493]
[1728533134252,0.083152,60920.0,60919.0,0.09661146]
[1728533134457,0.083152,60920.0,60919.0,0.20593345]
[1728533134458,0.084152,60920.0,60919.0,0.20593345]
[1728533134955,0.084152,60920.0,60919.0,0.20594787]
[1728533135162,0.084152,60920.0,60919.0,0.10761146]
[1728533135554,0.084152,60920.0,60919.0,0.20594945]
[1728533137458,0.084152,60920.0,60919.0,0.10761146]
[1728533138367,0.084152,60920.0,60919.0,0.20599748]
[1728533138561,0.084152,60920.0,60919.0,0.10761146]
[1728533138865,0.204152,60920.0,60919.0,0.21348134]
[1728533139164,0.204152,60920.0,60919.0,0.10761146]
[1728533139564,0.204152,60920.0,60919.0,0.21349285]
[1728533141262,0.002,60920.0,60919.0,0.29564685]
[1728533141762,0.002,60920.0,60919.0,0.56239304]
[1728533141968,0.002,60920.0,60919.0,1.04679201]
[1728533142162,0.002,60920.0,60919.0,0.9954223]
[1728533142365,0.002,60920.0,60919.0,1.12658778]
[1728533144459,0.002,60920.0,60919.0,1.12646842]
[1728533145864,0.11145715,60924.0,60921.0,0.082151]
[1728533146067,0.11145715,60924.0,60923.0,0.1970247]
[1728533146264,0.11145715,60924.0,60923.0,0.39156788]
[1728533147161,0.11145715,60924.0,60923.0,0.39456788]
[1728533147361,0.11145715,60924.0,60923.0,0.51739156]
[1728533147362,0.11245715,60924.0,60923.0,0.51739156]
[1728533147566,0.11245715,60924.0,60923.0,0.51738495]
[1728533147766,0.082147,60924.0,60923.0,0.51738495]
[1728533148064,0.083147,60924.0,60923.0,0.180901]
[1728533150863,0.083147,60924.0,60923.0,0.18089251]
[1728533155075,0.083147,60924.0,60923.0,0.52435159]
[1728533155574,0.083147,60924.0,60923.0,0.52434571]
[1728533155968,0.083147,60924.0,60923.0,0.40153496]
[1728533157678,0.001,60924.0,60923.0,0.40153496]
[1728533158069,0.083147,60924.0,60923.0,0.40153496]
[1728533158677,0.083147,60924.0,60923.0,0.52439733]
[1728533159177,0.083147,60924.0,60923.0,0.40153496]
[1728533159569,0.001,60924.0,60923.0,0.40153496]
[1728533159773,1.27036,60927.0,60926.0,0.082144]
[1728533160074,1.27036,60927.0,60926.0,0.59719022]
[1728533160373,1.27036,60927.0,60926.0,0.68080736]
[1728533160374,1.13681955,60927.0,60926.0,0.68080736]
[1728533160977,1.09983939,60927.0,60926.0,0.7640687]
[1728533161277,1.09983939,60927.0,60926.0,0.62336356]
[1728533161472,1.10083939,60927.0,60926.0,0.63136356]
[1728533161873,1.10083939,60927.0,60926.0,0.99616356]
[1728533162272,1.10083939,60927.0,60926.0,1.05545757]
[1728533162668,1.10083939,60927.0,60926.0,1.06145757]
[1728533162864,1.10183939,60927.0,60926.0,1.06145757]
[1728533163073,1.10083939,60927.0,60926.0,0.69226665]
[1728533163278,1.10183939,60927.0,60926.0,0.70626665]
[1728533164578,1.10183939,60927.0,60926.0,0.7062611]
[1728533166781,1.10183939,60927.0,60926.0,0.8262611]
[1728533167384,1.10183939,60927.0,60926.0,0.92465852]
[1728533167775,1.10183939,60927.0,60926.0,1.21813042]
[1728533168085,1.10183939,60927.0,60926.0,1.33625741]
[1728533170178,1.10183939,60927.0,60926.0,1.56447426]
[1728533170375,1.05047969,60927.0,60926.0,1.704083]
[1728533171084,1.05047969,60927.0,60926.0,1.65272344]
[1728533171285,1.05047969,60927.0,60926.0,1.58595601]
[1728533171484,1.05047969,60927.0,60926.0,1.65272362]
[1728533172284,0.96830416,60927.0,60926.0,1.65272362]
[1728533172787,0.96830416,60927.0,60926.0,1.29192362]
[1728533172985,0.96830416,60927.0,60926.0,1.65272362]
[1728533173188,0.96830416,60927.0,60926.0,1.64893329]
[1728533176079,0.93132532,60927.0,60926.0,1.64893329]
[1728533176680,0.93132532,60927.0,60926.0,1.58216568]
[1728533176875,0.93132532,60927.0,60926.0,1.64893304]
[1728533177076,0.93132532,60927.0,60926.0,1.52893304]
[1728533177277,0.93132532,60927.0,60926.0,1.51026558]
[1728533177890,0.93132532,60927.0,60926.0,1.51038103]
[1728533178986,1.13346832,60927.0,60926.0,0.84848103]
[1728533179595,1.05132532,60927.0,60926.0,0.84848103]
[1728533180098,0.93132532,60927.0,60926.0,0.96848103]
[1728533181101,0.93132532,60927.0,60926.0,1.09963399]
[1728533181500,0.93132532,60927.0,60926.0,1.60963399]
[1728533181704,0.1522,60935.0,60934.0,0.082133]
[1728533181705,0.0322,60935.0,60934.0,0.082133]
[1728533181999,0.0322,60935.0,60934.0,0.27508189]
[1728533182797,0.114332,60935.0,60934.0,0.8174272]
[1728533182995,0.116332,60935.0,60934.0,0.70264596]
[1728533183206,0.116332,60935.0,60934.0,0.93907946]
[1728533183609,0.116332,60935.0,60934.0,0.63588189]
[1728533183912,0.116332,60935.0,60934.0,0.63788189]
[1728533185917,0.116332,60935.0,60934.0,0.27708189]
[1728533186605,0.116332,60935.0,60934.0,0.39186313]
[1728533187208,0.116332,60935.0,60934.0,0.19494889]
[1728533187413,0.116332,60935.0,60934.0,0.19505578]
[1728533193418,0.116332,60935.0,60934.0,0.09007443]
[1728533193716,0.116332,60935.0,60934.0,0.18860271]
[1728533194105,0.116332,60935.0,60934.0,0.09007443]
[1728533194317,0.116332,60935.0,60934.0,0.1885836]
[1728533194816,0.477132,60935.0,60934.0,0.1885836]
[1728533195911,0.116332,60935.0,60934.0,0.1885836]
[1728533196217,0.477132,60935.0,60934.0,0.1885836]
[1728533196715,0.477132,60935.0,60934.0,0.09007443]
[1728533196916,0.477132,60935.0,60934.0,0.0906871]
[1728533196917,0.116332,60935.0,60934.0,0.0906871]
[1728533197211,0.477132,60935.0,60934.0,0.0906871]
[1728533200102,0.477132,60935.0,60934.0,0.002]
[1728533206021,0.597132,60935.0,60934.0,0.002]
[1728533208318,0.597132,60935.0,60934.0,0.18911925]
[1728533208525,0.597132,60935.0,60934.0,0.09061008]
[1728533208722,0.597132,60935.0,60934.0,0.1890667]
[1728533209621,0.597132,60935.0,60934.0,0.09061008]
[1728533211224,0.597132,60935.0,60934.0,0.09061458]
[1728533213913,0.236332,60935.0,60934.0,0.09061458]
[1728533214109,0.597132,60935.0,60934.0,0.09061458]
[1728533214918,0.236332,60935.0,60934.0,0.09061458]
[1728533215126,0.597132,60935.0,60934.0,0.09061458]
[1728533216120,0.597132,60935.0,60934.0,0.09068655]
[1728533216824,0.564932,60935.0,60934.0,0.09068655]
[1728533217329,0.564932,60935.0,60934.0,0.19640647]
[1728533218223,0.564932,60935.0,60934.0,0.19640211]
[1728533219525,0.564932,60935.0,60934.0,0.09068655]
[1728533219914,0.564932,60935.0,60934.0,0.19645025]
[1728533220430,0.564932,60935.0,60934.0,0.09068655]
[1728533220623,0.564932,60935.0,60934.0,0.09856992]
[1728533220624,1.757252,60935.0,60934.0,0.09856992]
[1728533220926,0.082139,60930.0,60929.0,0.0114]
[1728533221127,0.082146,60925.0,60924.0,0.0114]
[1728533221330,0.562946,60925.0,60924.0,0.10607435]
[1728533222729,0.562946,60925.0,60924.0,0.11107435]
[1728533223928,0.562946,60925.0,60924.0,0.10607435]
[1728533224228,0.563946,60925.0,60924.0,0.006]
[1728533224422,0.563946,60925.0,60924.0,0.009]
[1728533225226,0.59294726,60925.0,60924.0,0.009]
[1728533225934,0.47294726,60925.0,60924.0,0.009]
[1728533226122,0.59294726,60925.0,60924.0,0.009]
[1728533227024,0.47294726,60925.0,60924.0,0.009]
[1728533227229,0.03000126,60925.0,60924.0,0.1955298]
[1728533227827,0.03000126,60925.0,60924.0,0.26230622]
[1728533228033,0.03000126,60925.0,60924.0,0.1955298]
[1728533230526,0.001,60925.0,60924.0,0.1955298]
[1728533233727,0.001,60925.0,60924.0,0.19526943]
[1728533235728,0.001,60925.0,60924.0,0.28265409]
[1728533236323,0.083146,60925.0,60924.0,0.28265409]
[1728533238530,0.083146,60925.0,60924.0,0.28280139]
[1728533239123,0.083146,60925.0,60924.0,0.28283982]
[1728533239833,0.083146,60925.0,60924.0,0.0964351]
[1728533240036,0.203146,60925.0,60924.0,0.0964351]
[1728533241126,0.203146,60925.0,60924.0,0.17850386]
[1728533241326,0.203146,60925.0,60924.0,0.009]
[1728533242537,0.202146,60925.0,60924.0,0.003]
[1728533242726,0.202146,60925.0,60924.0,0.006]
[1728533243227,0.202146,60925.0,60924.0,0.003]
[1728533244031,0.205146,60925.0,60924.0,0.003]
[1728533244231,0.082147,60924.0,60923.0,0.08206876]
[1728533244532,0.082147,60924.0,60923.0,0.1696891]
[1728533245539,0.082147,60924.0,60923.0,0.08762034]
[1728533245741,0.082147,60924.0,60923.0,0.09062034]
[1728533247841,0.442947,60924.0,60923.0,0.09062034]
[1728533248145,0.442947,60924.0,60920.0,0.09845327]